fUST/lending_fUST_20260331
["ID","MTS","AMOUNT","RATE_DAILY","PERIOD"]
[419122502,1774903846853,-308969.16887563,0.00025242,2]
[419122504,1774903846909,-408238.47581804,0.00025242,2]
[419123205,1774903948438,500.0,0.0003,120]
[419123218,1774903948908,500.0,0.0003,120]
[419123400,1774903951018,500.0,0.0003,120]
[419123450,1774903951501,700.0,0.0003,120]
[419123458,1774903951991,500.0,0.0003,120]
[419123459,1774903952441,500.0,0.0003,120]
[419123460,1774903952925,500.0,0.0003,120]
[419123461,1774903953391,500.0,0.0003,120]
[419123462,1774903953893,500.0,0.0003,120]
[419123463,1774903954356,500.0,0.0003,120]
[419123464,1774903954836,500.0,0.0003,120]
[419123465,1774903955292,500.0,0.0003,120]
[419123489,1774904523128,-1500.0,0.00013292,2]
[419123490,1774904523141,-3500.0,0.00013292,2]
[419123491,1774904523151,-1082.0,0.00013698,2]
[419123492,1774904523160,-418.0,0.00013699,2]
[419123493,1774904552876,500.0,0.0003,120]
[419123494,1774904553344,500.0,0.0003,120]
[419123495,1774904553805,500.0,0.0003,120]
[419123586,1774905033129,-500.0,6.999e-05,2]
[419123587,1774905033139,-500.0,6.999e-05,2]
[419123588,1774905033149,-500.0,6.999e-05,2]
[419123589,1774905033159,-500.0,6.999e-05,2]
[419123590,1774905033168,-500.0,6.999e-05,2]
[419123591,1774905033178,-500.0,6.999e-05,2]
[419123592,1774905033188,-500.0,6.999e-05,2]
[419123593,1774905033198,-505.35762997,6.999e-05,2]
[419123594,1774905033207,-500.0,6.999e-05,2]
[419123595,1774905033216,-500.0,6.999e-05,2]
[419123596,1774905033226,-500.0,6.999e-05,2]
[419123597,1774905033235,-500.0,6.999e-05,2]
[419123598,1774905033244,-500.0,6.999e-05,2]
[419123599,1774905033254,-500.0,6.999e-05,2]
[419123600,1774905033263,-500.0,6.999e-05,2]
[419123601,1774905033272,-209.59151636,6.999e-05,2]
[419123602,1774905033284,-290.40848364,6.999e-05,2]
[419123603,1774905033293,-138.04801861,6.999e-05,2]
[419123604,1774905033305,-324.47130679,6.999e-05,2]
[419123605,1774905033326,-37.4806746,6.999e-05,2]
[419123606,1774905033336,-500.0,6.999e-05,2]
[419123607,1774905033345,-500.0,6.999e-05,2]
[419123608,1774905033355,-500.0,6.999e-05,2]
[419123609,1774905033364,-500.0,6.999e-05,2]
[419123610,1774905033374,-500.0,6.999e-05,2]
[419123612,1774905033383,-500.0,6.999e-05,2]
[419123614,1774905033393,-500.0,6.999e-05,2]
[419123617,1774905033403,-500.0,6.999e-05,2]
[419123619,1774905033413,-500.0,6.999e-05,2]
[419123621,1774905033422,-500.0,6.999e-05,2]
[419123623,1774905033431,-500.0,6.999e-05,2]
[419123625,1774905033440,-600.0,6.999e-05,2]
[419123627,1774905033449,-500.0,6.999e-05,2]
[419123629,1774905033459,-500.0,6.999e-05,2]
[419123631,1774905033468,-500.0,6.999e-05,2]
[419123633,1774905033477,-500.0,6.999e-05,2]
[419123635,1774905033486,-500.0,6.999e-05,2]
[419123637,1774905033495,-268.48428968,6.999e-05,2]
[419123639,1774905033505,-500.0,6.999e-05,2]
[419123641,1774905033514,-500.0,6.999e-05,2]
[419123643,1774905033524,-500.0,6.999e-05,2]
[419123645,1774905033534,-500.0,6.999e-05,2]
[419123647,1774905033544,-500.0,6.999e-05,2]
[419123649,1774905033555,-500.0,6.999e-05,2]
[419123651,1774905033566,-117.75382665,6.999e-05,2]
[419123653,1774905033578,-382.24617335,6.999e-05,2]
[419123655,1774905033587,-500.0,6.999e-05,2]
[419123658,1774905033598,-500.0,6.999e-05,2]
[419123660,1774905033607,-500.0,6.999e-05,2]
[419123662,1774905033616,-7104.51324379,7e-05,2]
[419123876,1774905040524,-500.0,6.999e-05,2]
[419123878,1774905040533,-500.0,6.999e-05,2]
[419123880,1774905040543,-500.0,6.999e-05,2]
[419123882,1774905040553,-500.0,6.999e-05,2]
[419123884,1774905040563,-500.0,6.999e-05,2]
[419123886,1774905040573,-500.0,6.999e-05,2]
[419123888,1774905040582,-500.0,6.999e-05,2]
[419123890,1774905040592,-500.0,6.999e-05,2]
[419123892,1774905040601,-500.0,6.999e-05,2]
[419123894,1774905040611,-500.0,6.999e-05,2]
[419123896,1774905040620,-500.0,6.999e-05,2]
[419123898,1774905040630,-500.0,6.999e-05,2]
[419123899,1774905040639,-500.0,6.999e-05,2]
[419123901,1774905040650,-500.0,6.999e-05,2]
[419123903,1774905040659,-500.0,6.999e-05,2]
[419123905,1774905040670,-500.0,6.999e-05,2]
[419123906,1774905040680,-500.0,6.999e-05,2]
[419123907,1774905040690,-500.0,6.999e-05,2]
[419123908,1774905040700,-500.0,6.999e-05,2]
[419123909,1774905040710,-500.0,6.999e-05,2]
[419123910,1774905040720,-500.0,6.999e-05,2]
[419123911,1774905040729,-500.0,6.999e-05,2]
[419123912,1774905040739,-4012.95250001,7e-05,2]
[419123913,1774905040753,-701.01735427,7e-05,2]
[419123987,1774905043262,-337.72830889,7e-05,2]
[419123988,1774905043274,-4980.79378949,7e-05,2]
[419123989,1774905043320,-49854.79924191,7e-05,2]
[419124005,1774905045971,-23424.47013629,7e-05,2]
[419124006,1774905045982,-1142.3617184,7e-05,2]
[419124007,1774905046008,-949.77920166,7e-05,2]
[419124008,1774905046020,-137.6731726,7e-05,2]
[419124009,1774905046030,-519.0,7e-05,2]
[419124010,1774905046040,-4377.15279357,0.00013562,8]
[419124011,1774905046063,-622.84720643,0.00013562,8]
[419124012,1774905046072,-1000.0,0.00013699,2]
[419124013,1774905046082,-147.41481851,0.0002,10]
[419124016,1774905149451,500.0,0.0003,120]
[419124017,1774905149872,500.0,0.0003,120]
[419124018,1774905151237,500.0,0.0003,120]
[419124019,1774905151680,500.0,0.0003,120]
[419124020,1774905152170,500.0,0.0003,120]
[419124021,1774905152776,500.0,0.0003,120]
[419124022,1774905153241,500.0,0.0003,120]
[419124023,1774905153857,500.0,0.0003,120]
[419124024,1774905154516,500.0,0.0003,120]
[419124026,1774905155262,500.0,0.0003,120]
[419124027,1774905155745,500.0,0.0003,120]
[419124028,1774905156209,900.0,0.0003,120]
[419124029,1774905160992,500.0,0.0003,120]
[419124030,1774905161475,500.0,0.0003,120]
[419124031,1774905161975,500.0,0.0003,120]
[419124032,1774905162455,900.0,0.0003,120]
[419124080,1774906231877,-709.050005,6.565e-05,8]
[419124087,1774906231930,-296.92009493,6.565e-05,8]
[419124245,1774906240689,-3994.02990007,6.565e-05,8]
[419124247,1774906240699,-300.0,7.356e-05,2]
[419124248,1774906240709,-300.0,7.356e-05,2]
[419124250,1774906240718,-524.0,7.356e-05,2]
[419124252,1774906240727,-621.0092271,7.357e-05,2]
[419124254,1774906240737,-1977.2259114,7.357e-05,2]
[419124256,1774906240746,-500.0,7.535e-05,2]
[419124259,1774906240755,-500.0,7.635e-05,2]
[419124261,1774906240765,-500.0,7.635e-05,2]
[419124263,1774906240775,-500.0,7.635e-05,2]
[419124265,1774906240785,-500.0,7.635e-05,2]
[419124267,1774906240794,-500.0,7.635e-05,2]
[419124269,1774906240804,-500.0,7.635e-05,2]
[419124272,1774906240814,-658.60704275,8.083e-05,2]
[419124274,1774906240824,-420.0,8.092e-05,2]
[419124276,1774906240833,-1000.0,8.183e-05,2]
[419124278,1774906240842,-1000.0,8.183e-05,2]
[419124280,1774906240852,-1000.0,8.183e-05,2]
[419124282,1774906240861,-1000.0,8.183e-05,2]
[419124284,1774906240871,-1000.0,8.183e-05,2]
[419124286,1774906240880,-500.0,8.183e-05,2]
[419124288,1774906240890,-1977.2259114,8.325e-05,2]
[419124290,1774906240899,-621.0092271,8.591e-05,2]
[419124292,1774906240909,-281.0,8.901e-05,2]
[419124294,1774906240918,-1977.2259114,9.292e-05,2]
[419124296,1774906240927,-621.0092271,9.825e-05,2]
[419124298,1774906240936,-1977.2259114,0.0001026,2]
[419124300,1774906240946,-300.0,0.00010568,2]
[419124302,1774906240956,-621.0092271,0.00011059,2]
[419124304,1774906240965,-1000.0,0.00013699,2]
[419124306,1774906240974,-168.0025522,0.00018671,2]
[419124308,1774906240984,-671.33819861,0.00018671,2]
[419124310,1774906240995,-3873.70749958,0.00018671,2]
[419124312,1774906241004,-204.97404645,0.0001943,2]
[419124314,1774906241014,-3115.58175336,0.00019529,2]
[419124316,1774906241023,-1807.76740042,0.00019654,2]
[419124318,1774906241035,-267.87189321,0.00019654,2]
[419124320,1774906241044,-1708.0104961,0.00019876,2]
[419124322,1774906241053,-59.58518149,0.0002,10]
[419124324,1774906241063,-643.0,0.000204,2]
[419124326,1774906241072,-369.116,0.000204,2]
[419124329,1774906241082,-184.0,0.000204,2]
[419124331,1774906241091,-439.0,0.000204,2]
[419124333,1774906241101,-1003.21144976,0.00022,2]
[419124335,1774906241111,-154.86541234,0.00022,2]
[419124337,1774906241120,-1042.13152969,0.000225,2]
[419124339,1774906241129,-307.0,0.00022548,7]
[419124341,1774906241139,-204.53427449,0.00022923,2]
[419124343,1774906241149,-5000.0,0.00022924,2]
[419124345,1774906241158,-3269.49099241,0.00022924,2]
[419124347,1774906241169,-1182.53094583,0.00022924,2]
[419124376,1774906243824,-204.9740464,0.00021117,2]
[419124377,1774906243834,-804.11436176,0.00022924,2]
[419124378,1774906243844,-288.12490184,0.00023,2]
[419124379,1774906243855,-437.94669,0.00023,2]
[419124380,1774906243867,-274.2180635,0.00023,2]
[419124381,1774906243877,-270.83333333,0.00023,2]
[419124382,1774906243886,-500.0,0.00023,2]
[419124383,1774906243897,-39.73616775,0.00023064,30]
[419124384,1774906243910,-744.00654836,0.00023064,30]
[419124401,1774906246275,-1245.14528569,0.00020905,8]
[419124402,1774906325942,1147.41481851,0.0001,2]
[419124403,1774906343047,500.0,0.0003,120]
[419124404,1774906347554,500.0,0.0003,120]
[419124405,1774906348018,500.0,0.0003,120]
[419124406,1774906348499,500.0,0.0003,120]
[419124407,1774906348983,500.0,0.0003,120]
[419124408,1774906349430,500.0,0.0003,120]
[419124409,1774906349916,500.0,0.0003,120]
[419124410,1774906357820,500.0,0.0003,120]
[419124411,1774906358271,500.0,0.0003,120]
[419124412,1774906358720,500.0,0.0003,120]
[419124413,1774906359157,500.0,0.0003,120]
[419124414,1774906359623,500.0,0.0003,120]
[419124415,1774906360067,500.0,0.0003,120]
[419124416,1774906360527,500.0,0.0003,120]
[419124417,1774906360573,500.0,0.0003,120]
[419124418,1774906360969,500.0,0.0003,120]
[419124419,1774906361534,500.0,0.0003,120]
[419124420,1774906361991,500.0,0.0003,120]
[419124421,1774906362465,500.0,0.0003,120]
[419124422,1774906362909,500.0,0.0003,120]
[419124423,1774906363368,500.0,0.0003,120]
[419124424,1774906363819,500.0,0.0003,120]
[419124425,1774906364306,500.0,0.0003,120]
[419124426,1774906364763,500.0,0.0003,120]
[419124427,1774906365249,500.0,0.0003,120]
[419124428,1774906365698,500.0,0.0003,120]
[419124429,1774906366165,500.0,0.0003,120]
[419124430,1774906366622,500.0,0.0003,120]
[419124431,1774906367092,500.0,0.0003,120]
[419124432,1774906370950,500.0,0.0003,120]
[419124433,1774906371402,500.0,0.0003,120]
[419124434,1774906371857,500.0,0.0003,120]
[419124435,1774906372317,500.0,0.0003,120]
[419124436,1774906372755,500.0,0.0003,120]
[419124437,1774906373228,500.0,0.0003,120]
[419124442,1774906693841,1681.7,0.00032876,120]
[419133012,1774907404306,164.235441,0.00022481,120]
[419133357,1774907432163,-1471.71378206,0.0001,2]
[419133358,1774907432175,-259.55564432,0.0001,2]
[419133360,1774907432186,-560.0,0.0001,2]
[419133361,1774907432197,-1000.0,0.00013699,2]
[419133362,1774907432210,-279.12902012,0.00019101,2]
[419133363,1774907432220,-457.24014536,0.00019101,2]
[419133364,1774907432230,-168.18515446,0.00019646,2]
[419133365,1774907432239,-300.0,0.00020239,2]
[419133366,1774907432249,-402.386,0.0002024,2]
[419133368,1774907432259,-184.0,0.0002024,2]
[419133369,1774907432269,-439.0,0.0002024,2]
[419133370,1774907432279,-250.0,0.00021692,2]
[419133371,1774907432289,-5534.6239988,0.00021996,2]
[419133372,1774907432298,-224.0,0.00022,6]
[419133373,1774907432308,-164.235441,0.00022481,2]
[419133374,1774907432318,-324.8899299,0.00022644,2]
[419133375,1774907432328,-455.0909563,0.00022644,2]
[419133377,1774907432338,-455.0909562,0.00022644,2]
[419133378,1774907432347,-455.0909562,0.00022644,2]
[419133379,1774907432357,-270.83333333,0.00023,2]
[419133380,1774907432367,-216.25728389,0.00023064,30]
[419133381,1774907432377,-339.0,0.00023064,3]
[419133382,1774907432388,-691.0,0.00023064,3]
[419133383,1774907432398,-200.5519818,0.00023064,3]
[419133385,1774907432408,-200.0,0.00023064,3]
[419133386,1774907432417,-691.0,0.00023064,3]
[419133387,1774907432427,-691.0,0.00023064,3]
[419133388,1774907432437,-691.0,0.00023064,3]
[419133389,1774907432448,-646.0,0.00023064,3]
[419133390,1774907432457,-691.0,0.00023064,3]
[419133391,1774907432469,-646.0,0.00023064,3]
[419133393,1774907432479,-339.0,0.00023064,3]
[419133395,1774907432582,-691.0,0.00023064,3]
[419133396,1774907432594,-339.0,0.00023064,3]
[419133397,1774907432604,-691.0,0.00023064,3]
[419133398,1774907432615,-339.0,0.00023064,3]
[419133399,1774907432625,-691.0,0.00023064,3]
[419133401,1774907432635,-339.0,0.00023064,3]
[419133402,1774907432644,-353.12541626,0.00023064,3]
[419133404,1774907432766,-337.87458374,0.00023064,3]
[419133405,1774907432778,-339.0,0.00023064,3]
[419133407,1774907432788,-691.0,0.00023064,3]
[419133408,1774907432800,-691.0,0.00023064,3]
[419133409,1774907432809,-691.0,0.00023064,3]
[419133410,1774907432819,-646.0,0.00023064,3]
[419133411,1774907432829,-646.0,0.00023064,3]
[419133412,1774907432839,-646.0,0.00023064,3]
[419133413,1774907432850,-163.0,0.00023064,3]
[419133415,1774907432859,-646.0,0.00023064,3]
[419133416,1774907432869,-192.1230839,0.00023064,3]
[419133417,1774907432878,-646.0,0.00023064,3]
[419133418,1774907432888,-646.0,0.00023064,3]
[419133419,1774907432899,-646.0,0.00023064,3]
[419133420,1774907432910,-646.0,0.00023064,3]
[419133421,1774907432920,-646.0,0.00023064,3]
[419133423,1774907432930,-85.84176436,0.00023064,3]
[419133574,1774907443622,-1074.91166387,0.00022833,8]
[419133615,1774907446312,-560.0,0.00022833,8]
[419134341,1774907547037,500.0,0.0003,120]
[419134342,1774907547520,500.0,0.0003,120]
[419134343,1774907547988,500.0,0.0003,120]
[419134414,1774907552149,500.0,0.0003,120]
[419134464,1774907552611,500.0,0.0003,120]
[419134478,1774907553062,500.0,0.0003,120]
[419134479,1774907553499,500.0,0.0003,120]
[419134492,1774907553960,500.0,0.0003,120]
[419134589,1774907554907,500.0,0.0003,120]
[419134639,1774907555369,500.0,0.0003,120]
[419134676,1774907555819,500.0,0.0003,120]
[419134720,1774907556259,500.0,0.0003,120]
[419134728,1774907558218,500.0,0.0003,120]
[419134729,1774907558698,764.61468353,0.0003,120]
[419134731,1774907564271,500.0,0.0003,120]
[419134732,1774907564754,500.0,0.0003,120]
[419134733,1774907565225,500.0,0.0003,120]
[419134734,1774907565813,500.0,0.0003,120]
[419134735,1774907566158,500.0,0.0003,120]
[419134736,1774907566618,500.0,0.0003,120]
[419134737,1774907567069,500.0,0.0003,120]
[419134738,1774907567527,500.0,0.0003,120]
[419134739,1774907567985,500.0,0.0003,120]
[419134740,1774907568455,500.0,0.0003,120]
[419134741,1774907568900,500.0,0.0003,120]
[419134742,1774907672460,500.0,0.00032876,120]
[419134743,1774907672682,500.0,0.00032876,120]
[419134744,1774907673450,500.0,0.00032876,120]
[419134745,1774907674034,500.0,0.00032876,120]
[419134746,1774907674229,500.0,0.00032876,120]
[419134747,1774907674500,501.51012,0.00032876,120]
[419134886,1774908632308,-1000.0,0.00013699,2]
[419134888,1774908632320,-474.97169873,0.00013699,2]
[419134890,1774908632332,-615.0,0.00013699,2]
[419134893,1774908632343,-1184.98321281,0.00013809,2]
[419134895,1774908632355,-776.0,0.00014007,2]
[419134897,1774908632366,-300.0,0.00014008,2]
[419134899,1774908632377,-2010.75374926,0.00014009,2]
[419134901,1774908632390,-700.499995,0.00014009,2]
[419134904,1774908632403,-207.88133233,0.00014009,2]
[419134906,1774908632414,-3451.79017734,0.00014309,2]
[419134908,1774908632427,-36.52184837,0.00014309,2]
[419134910,1774908632437,-3990.23222334,0.00014409,2]
[419134912,1774908632447,-600.24311934,0.00018,15]
[419134928,1774908632600,-3940.98550063,0.00018077,12]
[419134931,1774908632612,-779.44772307,0.00018077,12]
[419134933,1774908632622,-1000.0,0.00019241,2]
[419134935,1774908632631,-2249.4885645,0.00019324,2]
[419134937,1774908632641,-746.33742743,0.0002024,2]
[419134983,1774908638583,-1450.66257257,0.0002024,2]
[419134985,1774908638594,-58.92397863,0.0002024,2]
[419134986,1774908638746,-583.07602137,0.0002024,2]
[419134987,1774908638756,-552.0,0.0002024,2]
[419134988,1774908638766,-184.0,0.0002024,2]
[419134989,1774908638775,-490.758,0.0002024,2]
[419134990,1774908638785,-162.0,0.00022,2]
[419134992,1774908638794,-5144.14759016,0.00022405,38]
[419134994,1774908638804,-283.0,0.00022521,7]
[419134997,1774908638813,-151.0,0.00022644,2]
[419134999,1774908638822,-2398.4119403,0.00022985,2]
[419135002,1774908638831,-162.0,0.00023,2]
[419135004,1774908638841,-419.82,0.00023,2]
[419135005,1774908638849,-156.630925,0.00023064,2]
[419135007,1774908638858,-156.630925,0.00023064,2]
[419135008,1774908638867,-156.630925,0.00023064,2]
[419135009,1774908638876,-156.630925,0.00023064,2]
[419135010,1774908638885,-725.20155262,0.00023064,3]
[419135011,1774908638895,-585.45700828,0.00023064,3]
[419135012,1774908638904,-361.58808089,0.00023064,3]
[419135013,1774908638913,-270.83333333,0.00023104,2]
[419135014,1774908638922,-184.0,0.0002324,2]
[419135015,1774908638932,-439.0,0.0002324,2]
[419135016,1774908638942,-160.0,0.00023423,2]
[419135017,1774908638951,-160.0,0.00023423,2]
[419135018,1774908638960,-4934.18605178,0.00023472,2]
[419135019,1774908638970,-1134.686553,0.00023472,2]
[419135020,1774908638979,-1134.686553,0.00023472,2]
[419135021,1774908638989,-1134.686553,0.00023472,2]
[419135022,1774908638998,-1134.686553,0.00023472,2]
[419135023,1774908639008,-151.0,0.00023472,2]
[419135024,1774908639017,-151.0,0.00023472,2]
[419135025,1774908639027,-190.440866,0.00023472,2]
[419135026,1774908639036,-2487.15318209,0.00023533,2]
[419135027,1774908639046,-500.0,0.00023538,2]
[419135028,1774908639055,-500.0,0.00023538,2]
[419135029,1774908639065,-500.0,0.00023538,2]
[419135030,1774908639075,-500.0,0.00023538,2]
[419135031,1774908639084,-504.57265133,0.00023538,2]
[419135032,1774908639095,-608.65307694,0.00023538,2]
[419135033,1774908639104,-500.0,0.00023538,2]
[419135034,1774908639114,-500.0,0.00023538,2]
[419135035,1774908639124,-500.0,0.00023538,2]
[419135036,1774908639133,-500.0,0.00023538,2]
[419135037,1774908639143,-500.0,0.00023538,2]
[419135038,1774908639152,-500.0,0.00023538,2]
[419135039,1774908639161,-500.0,0.00023538,2]
[419135040,1774908639170,-500.0,0.00023538,2]
[419135041,1774908639179,-500.0,0.00023538,2]
[419135042,1774908639188,-500.0,0.00023538,2]
[419135043,1774908639198,-500.0,0.00023538,2]
[419135044,1774908639207,-500.0,0.00023538,2]
[419135045,1774908639217,-500.0,0.00023538,2]
[419135046,1774908639226,-500.0,0.00023538,2]
[419135047,1774908639235,-500.0,0.00023538,2]
[419135048,1774908639244,-500.0,0.00023538,2]
[419135049,1774908639254,-500.0,0.00023538,2]
[419135050,1774908639263,-500.0,0.00023538,2]
[419135051,1774908639272,-500.0,0.00023538,2]
[419135052,1774908639282,-500.0,0.00023538,2]
[419135053,1774908639291,-485.0,0.00023538,2]
[419135055,1774908639300,-500.0,0.00023538,2]
[419135056,1774908639311,-500.0,0.00023538,2]
[419135058,1774908639321,-500.0,0.00023538,2]
[419135060,1774908639330,-500.0,0.00023538,2]
[419135062,1774908639340,-500.0,0.00023538,2]
[419135064,1774908639349,-500.0,0.00023538,2]
[419135066,1774908639358,-500.0,0.00023538,2]
[419135068,1774908639368,-500.0,0.00023538,2]
[419135070,1774908639377,-500.0,0.00023538,2]
[419135071,1774908639387,-500.0,0.00023538,2]
[419135072,1774908639396,-500.0,0.00023538,2]
[419135073,1774908639406,-500.0,0.00023538,2]
[419135074,1774908639415,-500.0,0.00023538,2]
[419135075,1774908639424,-500.0,0.00023538,2]
[419135076,1774908639434,-500.0,0.00023538,2]
[419135077,1774908639444,-500.0,0.00023538,2]
[419135078,1774908639453,-500.0,0.00023538,2]
[419135079,1774908639463,-500.0,0.00023538,2]
[419135080,1774908639474,-500.0,0.00023538,2]
[419135081,1774908639484,-463.32349584,0.00023538,2]
[419135082,1774908639493,-500.0,0.00023538,2]
[419135083,1774908639503,-500.0,0.00023538,2]
[419135084,1774908639513,-500.0,0.00023538,2]
[419135085,1774908639523,-1134.686553,0.0002354,2]
[419135086,1774908639532,-1134.686553,0.0002354,2]
[419135087,1774908639541,-1134.686553,0.0002354,2]
[419135088,1774908639551,-1134.686553,0.0002354,2]
[419135089,1774908639561,-1134.686553,0.0002354,2]
[419135090,1774908639570,-1134.686553,0.0002354,2]
[419135091,1774908639580,-1134.686553,0.0002354,2]
[419135092,1774908639589,-1134.686553,0.0002354,2]
[419135093,1774908639598,-1134.686553,0.0002354,2]
[419135094,1774908639608,-1134.686553,0.0002354,2]
[419135095,1774908639617,-1134.686553,0.0002354,2]
[419135096,1774908639627,-1134.686553,0.0002354,2]
[419135097,1774908639636,-1134.686553,0.0002354,2]
[419135098,1774908639648,-1134.686553,0.0002354,2]
[419135099,1774908639657,-1134.686553,0.0002354,2]
[419135100,1774908639667,-1134.686557,0.0002354,2]
[419135101,1774908639676,-151.0,0.0002354,2]
[419135102,1774908639686,-151.0,0.0002354,2]
[419135103,1774908639695,-151.0,0.0002354,2]
[419135104,1774908639704,-151.0,0.0002354,2]
[419135105,1774908639713,-151.0,0.0002354,2]
[419135106,1774908639723,-151.0,0.0002354,2]
[419135107,1774908639732,-151.0,0.0002354,2]
[419135108,1774908639742,-151.0,0.0002354,2]
[419135109,1774908639752,-308.150494,0.00023541,2]
[419135110,1774908639761,-308.150494,0.00023541,2]
[419135111,1774908639771,-308.150494,0.00023541,2]
[419135112,1774908639780,-308.150494,0.00023541,2]
[419135113,1774908639790,-308.150494,0.00023541,2]
[419135114,1774908639799,-308.150494,0.00023541,2]
[419135115,1774908639808,-308.150494,0.00023541,2]
[419135116,1774908639818,-308.150494,0.00023541,2]
[419135117,1774908639827,-308.150494,0.00023541,2]
[419135118,1774908639836,-308.150494,0.00023541,2]
[419135119,1774908639845,-308.150494,0.00023541,2]
[419135120,1774908639856,-308.150494,0.00023541,2]
[419135121,1774908639866,-308.150494,0.00023541,2]
[419135122,1774908639875,-308.150494,0.00023541,2]
[419135123,1774908639885,-308.150494,0.00023541,2]
[419135124,1774908639895,-308.150494,0.00023541,2]
[419135125,1774908639906,-308.150494,0.00023541,2]
[419135126,1774908639916,-308.150494,0.00023541,2]
[419135127,1774908639929,-308.150494,0.00023541,2]
[419135128,1774908639939,-308.150502,0.00023541,2]
[419135129,1774908639949,-151.0,0.00023541,2]
[419135130,1774908639960,-151.0,0.00023541,2]
[419135131,1774908639972,-151.0,0.00023541,2]
[419135132,1774908639981,-151.0,0.00023541,2]
[419135133,1774908639991,-151.0,0.00023541,2]
[419135134,1774908640001,-151.0,0.00023541,2]
[419135135,1774908640010,-151.0,0.00023541,2]
[419135136,1774908640020,-151.0,0.00023541,2]
[419135137,1774908640030,-1117.137169,0.00023541,2]
[419135138,1774908640038,-1117.137169,0.00023541,2]
[419135139,1774908640048,-1117.137169,0.00023541,2]
[419135140,1774908640058,-1117.137169,0.00023541,2]
[419135141,1774908640068,-1117.137169,0.00023541,2]
[419135142,1774908640078,-1117.137169,0.00023541,2]
[419135143,1774908640087,-1117.137169,0.00023541,2]
[419135144,1774908640096,-1117.137169,0.00023541,2]
[419135145,1774908640105,-1117.137169,0.00023541,2]
[419135146,1774908640211,-1117.137169,0.00023541,2]
[419135147,1774908640222,-1117.137169,0.00023541,2]
[419135148,1774908640232,-1117.137169,0.00023541,2]
[419135149,1774908640243,-1117.137169,0.00023541,2]
[419135150,1774908640254,-1117.137169,0.00023541,2]
[419135151,1774908640263,-1117.137169,0.00023541,2]
[419135152,1774908640273,-1117.137169,0.00023541,2]
[419135153,1774908640282,-1117.137169,0.00023541,2]
[419135154,1774908640291,-1117.137169,0.00023541,2]
[419135155,1774908640300,-1117.137169,0.00023541,2]
[419135156,1774908640311,-1117.137173,0.00023541,2]
[419135157,1774908640321,-200.0,0.00023541,2]
[419135158,1774908640331,-500.0,0.00023541,2]
[419135159,1774908640342,-500.0,0.00023541,2]
[419135160,1774908640351,-500.0,0.00023541,2]
[419135161,1774908640361,-500.0,0.00023541,2]
[419135162,1774908640371,-500.0,0.00023541,2]
[419135163,1774908640381,-500.0,0.00023541,2]
[419135164,1774908640391,-500.0,0.00023541,2]
[419135165,1774908640401,-300.6594885,0.00023541,2]
[419135166,1774908640411,-500.0,0.00023541,2]
[419135167,1774908640420,-500.0,0.00023541,2]
[419135168,1774908640429,-500.0,0.00023541,2]
[419135169,1774908640439,-461.81420312,0.00023541,2]